fUSD/lending_fUSD_20260131
["ID","MTS","AMOUNT","RATE_DAILY","PERIOD"]
[404114906,1769868702274,-230.48624979,0.00039631,7]
[404114907,1769868702283,-243.60163854,0.00039631,7]
[404114908,1769868702292,-248.34681667,0.00039631,7]
[404114909,1769868702302,-583.5113974,0.00039631,7]
[404114910,1769868702311,-187.95146141,0.00039631,7]
[404114911,1769868702320,-168.55904772,0.00039633,120]
[404114912,1769868702329,-150.0,0.00039642,7]
[404114913,1769868702339,-150.0,0.00039658,7]
[404114914,1769868702349,-213.77427197,0.00039675,7]
[404114915,1769868702359,-302.10113213,0.00039675,7]
[404114916,1769868702368,-230.48624979,0.00039675,7]
[404114917,1769868702379,-243.60163854,0.00039675,7]
[404114918,1769868702389,-248.34681667,0.00039675,7]
[404114919,1769868702401,-583.5113974,0.00039675,7]
[404114920,1769868702412,-187.95146141,0.00039675,7]
[404114921,1769868702422,-150.0,0.00039675,7]
[404114922,1769868702433,-150.0,0.00039715,7]
[404114923,1769868702443,-150.0,0.00039715,7]
[404114924,1769868702453,-213.77427197,0.0003972,7]
[404114925,1769868702462,-302.10113213,0.0003972,7]
[404114926,1769868702471,-230.48624979,0.0003972,7]
[404114927,1769868702481,-243.60163854,0.0003972,7]
[404114928,1769868702490,-248.34681667,0.0003972,7]
[404114929,1769868702499,-583.5113974,0.0003972,7]
[404114930,1769868702508,-187.95146141,0.0003972,7]
[404114931,1769868702517,-150.0,0.00039738,7]
[404114932,1769868702526,-172.81036,0.00039743,30]
[404114933,1769868702538,-213.77427197,0.00039764,7]
[404114934,1769868702547,-302.10113213,0.00039764,7]
[404114935,1769868702556,-230.48624979,0.00039764,7]
[404114936,1769868702565,-243.60163854,0.00039764,7]
[404114937,1769868702574,-248.34681667,0.00039764,7]
[404114938,1769868702583,-583.5113974,0.00039764,7]
[404114939,1769868702593,-187.95146141,0.00039764,7]
[404114940,1769868702603,-150.0,0.00039764,7]
[404114941,1769868702613,-4905.11,0.000398,14]
[404114942,1769868702622,-157.96824107,0.000398,30]
[404114943,1769868702637,-213.77427197,0.00039808,7]
[404114944,1769868702647,-302.10113213,0.00039808,7]
[404114945,1769868702657,-230.48624979,0.00039808,7]
[404114946,1769868702666,-243.60163854,0.00039808,7]
[404114947,1769868702678,-248.34681667,0.00039808,7]
[404114948,1769868702687,-583.5113974,0.00039808,7]
[404114949,1769868702696,-187.95146141,0.00039808,7]
[404114950,1769868702710,-150.0,0.00039824,7]
[404114951,1769868702720,-1000.0,0.00039834,2]
[404114952,1769868702729,-150.0,0.00039848,7]
[404114953,1769868702738,-213.77427197,0.00039852,7]
[404114954,1769868702748,-302.10113213,0.00039852,7]
[404114955,1769868702757,-230.48624979,0.00039852,7]
[404114956,1769868702767,-243.60163854,0.00039852,7]
[404114957,1769868702776,-248.34681667,0.00039852,7]
[404114958,1769868702785,-583.5113974,0.00039852,7]
[404114959,1769868702795,-187.95146141,0.00039852,7]
[404114960,1769868702804,-150.0,0.00039853,7]
[404114961,1769868702813,-150.0,0.00039874,7]
[404114962,1769868702823,-177.53176779,0.0003989,2]
[404114963,1769868702833,-213.77427197,0.00039896,7]
[404114964,1769868702842,-302.10113213,0.00039896,7]
[404114965,1769868702951,-230.48624979,0.00039896,7]
[404114966,1769868702960,-243.60163854,0.00039896,7]
[404114967,1769868702969,-248.34681667,0.00039896,7]
[404114968,1769868702979,-583.5113974,0.00039896,7]
[404114969,1769868702988,-187.95146141,0.00039896,7]
[404114970,1769868703000,-4000.0,0.000399,2]
[404114971,1769868703009,-618.0,0.00039919,22]
[404114972,1769868703018,-150.0,0.00039933,7]
[404114973,1769868703027,-213.77427197,0.0003994,7]
[404114974,1769868703037,-302.10113213,0.0003994,7]
[404114975,1769868703046,-230.48624979,0.0003994,7]
[404114976,1769868703056,-243.60163854,0.0003994,7]
[404114977,1769868703065,-248.34681667,0.0003994,7]
[404114978,1769868703075,-583.5113974,0.0003994,7]
[404114979,1769868703085,-187.95146141,0.0003994,7]
[404114980,1769868703094,-172.81036,0.00039943,30]
[404114981,1769868703104,-150.0,0.00039968,7]
[404114982,1769868703114,-80862.2699133,0.0003998,2]
[404114983,1769868703124,-213.77427197,0.00039984,7]
[404114984,1769868703134,-302.10113213,0.00039984,7]
[404114985,1769868703143,-230.48624979,0.00039984,7]
[404114986,1769868703153,-243.60163854,0.00039984,7]
[404114987,1769868703164,-248.34681667,0.00039984,7]
[404114988,1769868703173,-583.5113974,0.00039984,7]
[404114989,1769868703182,-187.95146141,0.00039984,7]
[404114990,1769868703191,-425.21153178,0.0004,7]
[404114991,1769868703201,-986.88800255,0.0004,7]
[404114992,1769868703210,-142513.20009261,0.0004,14]
[404114993,1769868703220,-3000.0,0.0004,7]
[404114994,1769868703233,-161.27955543,0.0004,2]
[404114995,1769868703243,-601.66530194,0.0004,7]
[404114996,1769868703253,-2299.999997,0.0004,2]
[404114997,1769868703262,-389.38418626,0.0004,2]
[404114998,1769868703272,-1556.12051095,0.0004,2]
[404114999,1769868703281,-218.23168716,0.0004,2]
[404115000,1769868703293,-314.01666674,0.0004,2]
[404115001,1769868703302,-10658.46548952,0.0004,2]
[404115002,1769868703312,-200.57311929,0.0004,2]
[404115003,1769868703321,-250.0,0.0004,3]
[404115004,1769868703331,-51505.19671601,0.0004,14]
[404115005,1769868703340,-161.70916652,0.0004,8]
[404115006,1769868703349,-166.66666666,0.0004,120]
[404115007,1769868703359,-5000.0,0.0004,3]
[404115008,1769868703368,-159.30083442,0.0004,20]
[404115009,1769868703377,-250.0,0.0004,45]
[404115010,1769868703386,-250.0,0.0004,45]
[404115011,1769868703395,-250.0,0.0004,45]
[404115012,1769868703405,-250.0,0.0004,45]
[404115013,1769868703415,-152.0,0.0004,120]
[404115014,1769868703424,-250.0,0.0004,45]
[404115015,1769868703434,-250.0,0.0004,45]
[404115016,1769868703443,-250.0,0.0004,45]
[404115017,1769868703452,-170.94212843,0.0004,120]
[404115018,1769868703461,-508.27729121,0.0004,120]
[404115019,1769868703470,-591.91388752,0.0004,120]
[404115020,1769868703480,-410.34214407,0.0004,30]
[404115021,1769868703489,-160.75216236,0.0004,120]
[404115022,1769868703498,-617.58394711,0.0004,30]
[404115023,1769868703508,-8763.36320627,0.0004,30]
[404115024,1769868703519,-1072.37083,0.0004,10]
[404115025,1769868703530,-500.0,0.0004,120]
[404115026,1769868703542,-500.0,0.0004,120]
[404115027,1769868703551,-500.0,0.0004,120]
[404115028,1769868703560,-150.0,0.0004,120]
[404115029,1769868703569,-153.0,0.0004,120]
[404115030,1769868703579,-355.66887227,0.0004,120]
[404115031,1769868703588,-1000.0,0.0004,120]
[404115032,1769868703597,-1293.03690655,0.0004,120]
[404115033,1769868703606,-170.03422077,0.0004,120]
[404115034,1769868703615,-151.4299026,0.0004,120]
[404115035,1769868703625,-161.31497304,0.0004,120]
[404115036,1769868703639,-280.31,0.0004,30]
[404115037,1769868703649,-153.12,0.0004,30]
[404115038,1769868703660,-7035.0,0.0004,5]
[404115039,1769868703671,-231.0,0.0004,30]
[404115040,1769868703680,-260.0,0.0004,7]
[404115041,1769868703689,-1026.73169541,0.0004,20]
[404115042,1769868703699,-294.0,0.0004,10]
[404115043,1769868703709,-1000.0,0.0004,60]
[404115044,1769868703719,-452.59928886,0.0004,2]
[404115045,1769868703729,-540.8,0.0004,120]
[404115046,1769868703738,-500.0,0.0004,69]
[404115047,1769868703747,-7711.83,0.0004,30]
[404115048,1769868703757,-300.22710482,0.0004,120]
[404115049,1769868703767,-1714.73,0.0004,14]
[404115050,1769868703777,-174.99,0.0004,120]
[404115051,1769868703788,-634.78,0.0004,120]
[404115052,1769868703798,-317.99,0.0004,120]
[404115053,1769868703807,-577.73,0.0004,120]
[404115054,1769868703816,-453.66,0.0004,120]
[404115055,1769868703826,-641.58,0.0004,120]
[404115056,1769868703835,-1051.88,0.0004,120]
[404115057,1769868703844,-1028.63,0.0004,120]
[404115058,1769868703853,-150.0,0.0004,120]
[404115059,1769868703862,-2000.0,0.0004,120]
[404115060,1769868703871,-1031.26069382,0.0004,30]
[404115061,1769868703881,-600.0,0.0004,2]
[404115062,1769868703890,-150.0,0.00040006,7]
[404115063,1769868703899,-150.0,0.00040006,7]
[404115064,1769868703912,-5500.46842586,0.0004001,10]
[404115065,1769868703922,-213.77427197,0.00040028,7]
[404115066,1769868703931,-302.10113213,0.00040028,7]
[404115067,1769868703940,-230.48624979,0.00040028,7]
[404115068,1769868703949,-243.60163854,0.00040028,7]
[404115069,1769868703959,-248.34681667,0.00040028,7]
[404115070,1769868703968,-583.5113974,0.00040028,7]
[404115071,1769868703977,-187.95146141,0.00040028,7]
[404115072,1769868703986,-150.0,0.00040038,7]
[404115073,1769868703995,-150.0,0.00040042,7]
[404115074,1769868704004,-213.77427197,0.00040072,7]
[404115075,1769868704013,-302.10113213,0.00040072,7]
[404115076,1769868704023,-230.48624979,0.00040072,7]
[404115077,1769868704033,-243.60163854,0.00040072,7]
[404115078,1769868704043,-248.34681667,0.00040072,7]
[404115079,1769868704052,-583.5113974,0.00040072,7]
[404115080,1769868704062,-187.95146141,0.00040072,7]
[404115081,1769868704071,-150.0,0.00040072,7]
[404115082,1769868704080,-150.0,0.00040083,7]
[404115083,1769868704089,-213.77427197,0.00040116,7]
[404115084,1769868704099,-302.10113213,0.00040116,7]
[404115085,1769868704109,-230.48624979,0.00040116,7]
[404115086,1769868704119,-243.60163854,0.00040116,7]
[404115087,1769868704129,-248.34681667,0.00040116,7]
[404115088,1769868704139,-583.5113974,0.00040116,7]
[404115089,1769868704149,-187.95146141,0.00040116,7]
[404115090,1769868704159,-576.0345,0.00040143,7]
[404115091,1769868704169,-150.0,0.00040152,7]
[404115092,1769868704178,-150.0,0.00040152,7]
[404115093,1769868704188,-213.77427197,0.0004016,7]
[404115094,1769868704197,-302.10113213,0.0004016,7]
[404115095,1769868704207,-230.48624979,0.0004016,7]
[404115096,1769868704216,-243.60163854,0.0004016,7]
[404115097,1769868704227,-248.34681667,0.0004016,7]
[404115098,1769868704237,-583.5113974,0.0004016,7]
[404115099,1769868704247,-187.95146141,0.0004016,7]
[404115100,1769868704256,-150.0,0.00040198,7]
[404115101,1769868704266,-213.77427197,0.00040204,7]
[404115102,1769868704275,-302.10113213,0.00040204,7]
[404115103,1769868704285,-230.48624979,0.00040204,7]
[404115104,1769868704295,-243.60163854,0.00040204,7]
[404115105,1769868704304,-248.34681667,0.00040204,7]
[404115106,1769868704314,-583.5113974,0.00040204,7]
[404115107,1769868704325,-187.95146141,0.00040204,7]
[404115108,1769868704335,-150.0,0.00040227,7]
[404115109,1769868704345,-213.77427197,0.00040249,7]
[404115110,1769868704354,-302.10113213,0.00040249,7]
[404115111,1769868704365,-230.48624979,0.00040249,7]
[404115112,1769868704374,-243.60163854,0.00040249,7]
[404115113,1769868704383,-248.34681667,0.00040249,7]
[404115114,1769868704393,-583.5113974,0.00040249,7]
[404115115,1769868704402,-187.95146141,0.00040249,7]
[404115116,1769868704411,-150.0,0.00040249,7]
[404115117,1769868704421,-150.0,0.00040261,7]
[404115118,1769868704430,-150.0,0.00040271,7]
[404115119,1769868704440,-213.77427197,0.00040293,7]
[404115120,1769868704449,-302.10113213,0.00040293,7]
[404115121,1769868704459,-230.48624979,0.00040293,7]
[404115122,1769868704469,-243.60163854,0.00040293,7]
[404115123,1769868704478,-248.34681667,0.00040293,7]
[404115124,1769868704488,-583.5113974,0.00040293,7]
[404115125,1769868704497,-187.95146141,0.00040293,7]
[404115126,1769868704506,-150.0,0.00040312,7]
[404115127,1769868704516,-520.73,0.0004032,120]
[404115128,1769868704525,-213.77427197,0.00040337,7]
[404115129,1769868704534,-302.10113213,0.00040337,7]
[404115130,1769868704545,-230.48624979,0.00040337,7]
[404115131,1769868704566,-243.60163854,0.00040337,7]
[404115132,1769868704575,-248.34681667,0.00040337,7]
[404115133,1769868704585,-583.5113974,0.00040337,7]
[404115134,1769868704595,-187.95146141,0.00040337,7]
[404115135,1769868704604,-172.81036,0.00040343,30]
[404115136,1769868704613,-150.0,0.0004037,7]
[404115137,1769868704623,-150.0,0.0004037,7]
[404115138,1769868704635,-150.0,0.0004037,7]
[404115139,1769868704645,-213.77427197,0.00040381,7]
[404115140,1769868704656,-302.10113213,0.00040381,7]
[404115141,1769868704666,-230.48624979,0.00040381,7]
[404115142,1769868704677,-243.60163854,0.00040381,7]
[404115143,1769868704690,-248.34681667,0.00040381,7]
[404115144,1769868704700,-583.5113974,0.00040381,7]
[404115145,1769868704711,-187.95146141,0.00040381,7]
[404115146,1769868704720,-150.0,0.00040417,7]
[404115147,1769868704730,-213.77427197,0.00040425,7]
[404115148,1769868704740,-302.10113213,0.00040425,7]
[404115149,1769868704750,-230.48624979,0.00040425,7]
[404115150,1769868704760,-243.60163854,0.00040425,7]
[404115151,1769868704770,-248.34681667,0.00040425,7]
[404115152,1769868704779,-583.5113974,0.00040425,7]
[404115153,1769868704789,-187.95146141,0.00040425,7]
[404115154,1769868704799,-150.0,0.00040427,7]
[404115155,1769868704809,-213.77427197,0.00040469,7]
[404115156,1769868704818,-302.10113213,0.00040469,7]
[404115157,1769868704829,-230.48624979,0.00040469,7]
[404115158,1769868704849,-243.60163854,0.00040469,7]
[404115159,1769868704868,-248.34681667,0.00040469,7]
[404115160,1769868704879,-583.5113974,0.00040469,7]
[404115161,1769868704888,-187.95146141,0.00040469,7]
[404115162,1769868704899,-150.0,0.00040469,7]
[404115163,1769868704909,-150.0,0.00040479,7]
[404115164,1769868704919,-250.0,0.000405,45]
[404115165,1769868704928,-250.0,0.000405,45]
[404115166,1769868704937,-250.0,0.000405,45]
[404115167,1769868704947,-250.0,0.000405,45]
[404115168,1769868704957,-250.0,0.000405,45]
[404115169,1769868704967,-250.0,0.000405,45]
[404115170,1769868704977,-250.0,0.000405,45]
[404115171,1769868704988,-272.10133014,0.000405,120]
[404115172,1769868704998,-1000.0,0.000405,60]
[404115173,1769868705008,-213.77427197,0.00040513,7]
[404115174,1769868705020,-302.10113213,0.00040513,7]
[404115175,1769868705031,-230.48624979,0.00040513,7]
[404115176,1769868705041,-243.60163854,0.00040513,7]
[404115177,1769868705052,-248.34681667,0.00040513,7]
[404115178,1769868705063,-583.5113974,0.00040513,7]
[404115179,1769868705083,-187.95146141,0.00040513,7]
[404115180,1769868705095,-150.0,0.00040542,7]
[404115181,1769868705106,-172.81036,0.00040543,30]
[404115182,1769868705116,-618.0,0.00040545,23]
[404115183,1769868705126,-600.0,0.00040548,2]
[404115184,1769868705138,-213.77427197,0.00040557,7]
[404115185,1769868705159,-302.10113213,0.00040557,7]
[404115186,1769868705170,-230.48624979,0.00040557,7]
[404115187,1769868705183,-243.60163854,0.00040557,7]
[404115188,1769868705195,-248.34681667,0.00040557,7]
[404115189,1769868705208,-583.5113974,0.00040557,7]
[404115190,1769868705218,-187.95146141,0.00040557,7]
[404115191,1769868705229,-150.0,0.00040588,7]
[404115192,1769868705239,-150.0,0.00040588,7]
[404115193,1769868705250,-153.0,0.000406,120]
[404115194,1769868705261,-213.77427197,0.00040601,7]
[404115195,1769868705271,-302.10113213,0.00040601,7]
[404115196,1769868705281,-230.48624979,0.00040601,7]
[404115197,1769868705290,-243.60163854,0.00040601,7]
[404115198,1769868705300,-248.34681667,0.00040601,7]
[404115199,1769868705310,-583.5113974,0.00040601,7]
[404115200,1769868705319,-187.95146141,0.00040601,7]
[404115201,1769868705328,-150.0,0.00040607,7]
[404115202,1769868705338,-213.77427197,0.00040645,7]
[404115203,1769868705347,-302.10113213,0.00040645,7]
[404115204,1769868705357,-230.48624979,0.00040645,7]
[404115205,1769868705367,-243.60163854,0.00040645,7]
[404115206,1769868705377,-248.34681667,0.00040645,7]
[404115207,1769868705387,-583.5113974,0.00040645,7]
[404115208,1769868705396,-187.95146141,0.00040645,7]
[404115209,1769868705405,-150.0,0.00040657,7]
[404115210,1769868705416,-150.0,0.00040667,7]
[404115211,1769868705427,-213.77427197,0.00040689,7]
[404115212,1769868705439,-230.48624979,0.00040689,7]
[404115213,1769868705449,-302.10113213,0.00040689,7]
[404115214,1769868705459,-243.60163854,0.00040689,7]
[404115215,1769868705468,-248.34681667,0.00040689,7]
[404115216,1769868705478,-583.5113974,0.00040689,7]
[404115217,1769868705487,-187.95146141,0.00040689,7]
[404115218,1769868705497,-150.0,0.00040697,7]
[404115219,1769868705506,-152.0,0.000407,120]
[404115220,1769868705516,-1724.11620815,0.000407,27]
[404115221,1769868705525,-213.77427197,0.00040733,7]
[404115222,1769868705535,-302.10113213,0.00040733,7]
[404115223,1769868705545,-230.48624979,0.00040733,7]
[404115224,1769868705555,-243.60163854,0.00040733,7]
[404115225,1769868705565,-248.34681667,0.00040733,7]
[404115226,1769868705575,-583.5113974,0.00040733,7]
[404115227,1769868705584,-187.95146141,0.00040733,7]
[404115228,1769868705593,-150.0,0.00040733,7]
[404115229,1769868705603,-150.0,0.00040733,7]
[404115230,1769868705612,-150.0,0.00040733,7]
[404115231,1769868705622,-172.81036,0.00040743,30]
[404115232,1769868705633,-150.0,0.00040772,7]
[404115233,1769868705643,-213.77427197,0.00040778,7]
[404115234,1769868705653,-230.48624979,0.00040778,7]
[404115235,1769868705664,-243.60163854,0.00040778,7]
[404115236,1769868705675,-248.34681667,0.00040778,7]
[404115237,1769868705685,-583.5113974,0.00040778,7]
[404115238,1769868705695,-187.95146141,0.00040778,7]
[404115239,1769868705706,-150.0,0.00040797,7]
[404115240,1769868705718,-356.11,0.000408,120]
[404115241,1769868705728,-150.0,0.00040806,7]
[404115242,1769868705738,-166.92,0.00040813,120]
[404115243,1769868705748,-154.5,0.00040814,120]
[404115244,1769868705758,-154.5,0.00040814,120]
[404115245,1769868705767,-1028.63,0.00040821,120]
[404115246,1769868705777,-213.77427197,0.00040822,7]
[404115247,1769868705786,-302.10113213,0.00040822,7]
[404115248,1769868705798,-230.48624979,0.00040822,7]
[404115249,1769868705808,-243.60163854,0.00040822,7]
[404115250,1769868705818,-248.34681667,0.00040822,7]
[404115251,1769868705827,-583.5113974,0.00040822,7]
[404115252,1769868705836,-187.95146141,0.00040822,7]
[404115253,1769868705846,-1000.0,0.00040834,2]
[404115254,1769868705855,-213.77427197,0.00040866,7]
[404115255,1769868705865,-302.10113213,0.00040866,7]
[404115256,1769868705874,-230.48624979,0.00040866,7]
[404115257,1769868705884,-243.60163854,0.00040866,7]
[404115258,1769868705893,-248.34681667,0.00040866,7]
[404115259,1769868705905,-583.5113974,0.00040866,7]
[404115260,1769868705915,-187.95146141,0.00040866,7]
[404115261,1769868705925,-150.0,0.00040866,7]
[404115262,1769868705935,-187.18985391,0.00040885,120]
[404115263,1769868705944,-150.0,0.00040887,7]
[404115264,1769868705954,-4905.1,0.000409,14]
[404115265,1769868705963,-4905.11,0.000409,14]
[404115266,1769868705973,-152.47,0.00040902,120]
[404115267,1769868705983,-1000.0,0.00040903,14]
[404115268,1769868705992,-213.77427197,0.0004091,7]
[404115269,1769868706001,-302.10113213,0.0004091,7]
[404115270,1769868706018,-230.48624979,0.0004091,7]
[404115271,1769868706028,-243.60163854,0.0004091,7]
[404115272,1769868706041,-248.34681667,0.0004091,7]
[404115273,1769868706051,-583.5113974,0.0004091,7]
[404115274,1769868706061,-187.95146141,0.0004091,7]
[404115275,1769868706071,-6944.8938486,0.0004091,2]
[404115276,1769868706080,-25616.22801561,0.0004091,4]
[404115277,1769868706090,-2110.44981606,0.0004091,2]
[404115278,1769868706101,-39668.11888933,0.0004091,2]
[404115279,1769868706112,-166.92,0.00040913,120]
[404115280,1769868706121,-154.5,0.00040914,120]
[404115281,1769868706131,-150.0,0.00040915,7]
[404115282,1769868706140,-211.0,0.0004093,30]
[404115283,1769868706151,-172.81036,0.00040943,30]
[404115284,1769868706160,-213.77427197,0.00040954,7]
[404115285,1769868706170,-302.10113213,0.00040954,7]
[404115286,1769868706179,-230.48624979,0.00040954,7]
[404115287,1769868706188,-243.60163854,0.00040954,7]
[404115288,1769868706198,-248.34681667,0.00040954,7]
[404115289,1769868706208,-583.5113974,0.00040954,7]
[404115290,1769868706219,-187.95146141,0.00040954,7]
[404115291,1769868706236,-150.0,0.00040986,7]
[404115292,1769868706246,-213.77427197,0.00040998,7]
[404115293,1769868706256,-302.10113213,0.00040998,7]
[404115294,1769868706266,-230.48624979,0.00040998,7]
[404115295,1769868706276,-243.60163854,0.00040998,7]
[404115296,1769868706286,-248.34681667,0.00040998,7]
[404115297,1769868706297,-583.5113974,0.00040998,7]
[404115298,1769868706307,-187.95146141,0.00040998,7]
[404115299,1769868706317,-7600.20441356,0.00040998,2]
[404115300,1769868706327,-150.0,0.00041,5]
[404115301,1769868706337,-200.0,0.00041,120]
[404115302,1769868706347,-250.0,0.00041,45]
[404115303,1769868706357,-1235.12022053,0.00041,30]
[404115304,1769868706367,-250.0,0.00041,45]
[404115305,1769868706377,-250.0,0.00041,45]
[404115306,1769868706387,-250.0,0.00041,45]
[404115307,1769868706397,-250.0,0.00041,45]
[404115308,1769868706406,-250.0,0.00041,45]
[404115309,1769868706416,-163.95871755,0.00041,120]
[404115310,1769868706425,-2000.0,0.00041,120]
[404115311,1769868706435,-154.05217769,0.00041,120]
[404115312,1769868706444,-334.05,0.00041,120]
[404115313,1769868706453,-150.0,0.00041,120]
[404115314,1769868706463,-563.38491876,0.00041,30]
[404115315,1769868706473,-291.0,0.00041,120]
[404115316,1769868706482,-234.864,0.00041,3]
[404115317,1769868706491,-1000.0,0.00041,120]
[404115318,1769868706501,-512.18319803,0.00041,120]
[404115319,1769868706510,-1000.0,0.00041,90]
[404115320,1769868706519,-500.0,0.00041,70]
[404115321,1769868706529,-307.10167046,0.00041,2]
[404115322,1769868706538,-150.0,0.00041,120]
[404115323,1769868706548,-1029.0,0.00041,30]
[404115324,1769868706558,-150.0,0.00041001,7]
[404115325,1769868706568,-152.47,0.00041002,120]
[404115326,1769868706577,-166.92,0.00041013,120]
[404115327,1769868706586,-154.5,0.00041014,120]
[404115328,1769868706596,-150.0,0.00041024,7]
[404115329,1769868706606,-150.0,0.00041024,7]
[404115330,1769868706615,-520.73,0.0004104,120]
[404115331,1769868706625,-14392.47510673,0.0004104,4]
[404115332,1769868706641,-400.7,0.00041041,120]
[404115333,1769868706650,-213.77427197,0.00041042,7]
[404115334,1769868706660,-302.10113213,0.00041042,7]
[404115335,1769868706671,-230.48624979,0.00041042,7]
[404115336,1769868706681,-243.60163854,0.00041042,7]
[404115337,1769868706691,-248.34681667,0.00041042,7]
[404115338,1769868706701,-583.5113974,0.00041042,7]
[404115339,1769868706710,-187.95146141,0.00041042,7]
[404115340,1769868706720,-118566.31925501,0.00041059,2]
[404115341,1769868706729,-150.0,0.00041064,7]
[404115342,1769868706739,-171.93,0.00041068,120]
[404115343,1769868706748,-1485.0,0.00041068,120]
[404115344,1769868706757,-352.1,0.00041068,120]
[404115345,1769868706767,-172.03102143,0.00041068,120]
[404115346,1769868706777,-150.9,0.00041068,120]
[404115347,1769868706786,-742.5,0.00041068,120]
[404115348,1769868706797,-1267.0,0.00041068,120]
[404115349,1769868706806,-243.75432067,0.00041068,120]
[404115350,1769868706815,-1391.0,0.00041068,120]
[404115351,1769868706824,-1669.0,0.00041068,120]
[404115352,1769868706833,-704.2,0.00041068,120]
[404115353,1769868706842,-521.75329768,0.00041068,120]
[404115354,1769868706852,-489.0,0.00041068,120]
[404115355,1769868706862,-354.75,0.00041068,120]
[404115356,1769868706871,-213.77427197,0.00041086,7]
[404115357,1769868706881,-302.10113213,0.00041086,7]
[404115358,1769868706890,-230.48624979,0.00041086,7]
[404115359,1769868706899,-243.60163854,0.00041086,7]
[404115360,1769868706912,-248.34681667,0.00041086,7]
[404115361,1769868706922,-583.5113974,0.00041086,7]
[404115362,1769868706934,-187.95146141,0.00041086,7]
[404115363,1769868706948,-500.0,0.00041095,120]
[404115364,1769868706959,-500.0,0.00041095,120]
[404115365,1769868706968,-500.0,0.00041095,120]
[404115366,1769868706978,-500.0,0.00041095,120]
[404115367,1769868706987,-500.0,0.00041095,120]
[404115368,1769868706996,-500.0,0.00041095,120]
[404115369,1769868707006,-500.0,0.00041095,120]
[404115370,1769868707015,-500.0,0.00041095,120]
[404115371,1769868707027,-424.52367357,0.00041095,120]
[404115372,1769868707037,-707.32,0.00041096,120]
[404115373,1769868707049,-450.98,0.00041096,120]
[404115374,1769868707059,-500.0,0.00041096,120]
[404115375,1769868707068,-150.0,0.00041097,30]
[404115376,1769868707078,-831.75969914,0.000411,120]
[404115377,1769868707091,-831.75969914,0.000411,120]
[404115378,1769868707101,-831.75969914,0.000411,120]
[404115379,1769868707111,-831.75969914,0.000411,120]
[404115380,1769868707122,-831.75969914,0.000411,120]
[404115381,1769868707131,-831.75969914,0.000411,120]
[404115382,1769868707141,-831.75969914,0.000411,120]
[404115383,1769868707153,-831.75969914,0.000411,120]
[404115384,1769868707163,-831.75969914,0.000411,120]
[404115385,1769868707173,-831.75969914,0.000411,120]
[404115386,1769868707183,-831.75969914,0.000411,120]
[404115387,1769868707193,-831.75969914,0.000411,120]
[404115388,1769868707203,-831.75969914,0.000411,120]
[404115389,1769868707213,-831.75969914,0.000411,120]
[404115390,1769868707223,-831.75969914,0.000411,120]
[404115391,1769868707233,-831.75969914,0.000411,120]
[404115392,1769868707243,-831.75969914,0.000411,120]
[404115393,1769868707253,-831.75969914,0.000411,120]
[404115394,1769868707263,-831.75969914,0.000411,120]
[404115395,1769868707273,-831.75,0.000411,120]
[404115396,1769868707283,-1940.77263134,0.000411,120]
[404115397,1769868707294,-1940.77263134,0.000411,120]
[404115398,1769868707304,-1940.77263134,0.000411,120]
[404115399,1769868707314,-1940.77263134,0.000411,120]
[404115400,1769868707323,-1940.77263134,0.000411,120]
[404115401,1769868707333,-1940.77263134,0.000411,120]
[404115402,1769868707342,-1940.77263134,0.000411,120]
[404115403,1769868707352,-1940.77263134,0.000411,120]
[404115404,1769868707362,-1940.77263134,0.000411,120]
[404115405,1769868707371,-1940.77263134,0.000411,120]